fUST/lending_fUST_20240313
["ID","MTS","AMOUNT","RATE_DAILY","PERIOD"]
[318517111,1710271833014,-270.23601369,0.00015498,2]
[318517112,1710271833023,-211.97574014,0.00015498,2]
[318517113,1710271833032,-15244.78488328,0.00015498,2]
[318517114,1710271833042,-966.01360658,0.00015498,2]
[318517115,1710271833052,-155.36042613,0.00015498,2]
[318517116,1710271833061,-163.32544229,0.00015498,2]
[318517117,1710271833070,-347.77838108,0.00015498,2]
[318517118,1710271833079,-1297.56472994,0.00015498,2]
[318517119,1710271833088,-245.98065434,0.00015498,2]
[318517120,1710271833098,-204.87491484,0.00015498,2]
[318517121,1710271833107,-538.93657172,0.00015498,2]
[318517122,1710271833116,-524.29941204,0.00015498,2]
[318517123,1710271833125,-624.13231565,0.00015498,2]
[318517124,1710271833134,-310.2730403,0.00015498,2]
[318517125,1710271833143,-312.41642479,0.00015498,2]
[318517126,1710271833153,-527.14947298,0.00015498,2]
[318517127,1710271833162,-180.429772,0.00015498,2]
[318517128,1710271833172,-1288.73245079,0.00015498,2]
[318517129,1710271833181,-500.0,0.00015498,2]
[318517130,1710271833191,-500.0,0.00015498,2]
[318517131,1710271833200,-880.53,0.00015498,2]
[318517132,1710271833209,-880.53,0.00015498,2]
[318517133,1710271833218,-880.53,0.00015498,2]
[318517134,1710271833236,-500.0,0.00015498,2]
[318517135,1710271833248,-355.66068189,0.00015498,2]
[318517136,1710271833257,-500.0,0.00015498,2]
[318517137,1710271833267,-500.0,0.00015498,2]
[318517138,1710271833276,-500.0,0.00015498,2]
[318517139,1710271833285,-500.0,0.00015498,2]
[318517140,1710271833295,-500.0,0.00015498,2]
[318517141,1710271833306,-500.0,0.00015498,2]
[318517142,1710271833315,-500.0,0.00015498,2]
[318517143,1710271833325,-500.0,0.00015498,2]
[318517144,1710271833334,-500.0,0.00015498,2]
[318517145,1710271833343,-500.0,0.00015498,2]
[318517146,1710271833353,-500.0,0.00015498,2]
[318517147,1710271833362,-500.0,0.00015498,2]
[318517148,1710271833372,-500.0,0.00015498,2]
[318517149,1710271833382,-500.0,0.00015498,2]
[318517150,1710271833392,-500.0,0.00015498,2]
[318517151,1710271833401,-500.0,0.00015498,2]
[318517152,1710271833411,-500.0,0.00015498,2]
[318517153,1710271833420,-500.0,0.00015498,2]
[318517154,1710271833430,-245.13270181,0.00015498,2]
[318517155,1710271833439,-500.0,0.00015498,2]
[318517156,1710271833449,-2924.05,0.00015498,2]
[318517157,1710271833458,-500.0,0.00015498,2]
[318517158,1710271833469,-2924.05,0.00015498,2]
[318517159,1710271833479,-2924.05,0.00015498,2]
[318517160,1710271833488,-2924.05,0.00015498,2]
[318517161,1710271833498,-2924.05,0.00015498,2]
[318517162,1710271833510,-2924.05,0.00015498,2]
[318517163,1710271833519,-500.0,0.00015498,2]
[318517164,1710271833529,-500.0,0.00015498,2]
[318517165,1710271833538,-500.0,0.00015498,2]
[318517166,1710271833548,-500.0,0.00015498,2]
[318517167,1710271833558,-500.0,0.00015498,2]
[318517168,1710271833567,-500.0,0.00015498,2]
[318517169,1710271833578,-187.37706428,0.00015498,2]
[318517170,1710271833587,-500.0,0.00015498,2]
[318517171,1710271833596,-500.0,0.00015498,2]
[318517172,1710271833605,-5224.02,0.00015498,2]
[318517173,1710271833614,-5224.02,0.00015498,2]
[318517174,1710271833623,-4488.36685047,0.00015498,2]
[318517179,1710271833790,-735.65314953,0.00015498,2]
[318517180,1710271833799,-5224.02,0.00015498,2]
[318517181,1710271833809,-5224.02,0.00015498,2]
[318517182,1710271833818,-4135.0033719,0.00015498,2]
[318517183,1710271833831,-1089.0166281,0.00015498,2]
[318517184,1710271833840,-153.3433719,0.00015498,2]
[318517280,1710271838218,-155.35732184,0.0001341,2]
[318517283,1710271838228,-228.25341127,0.00015398,2]
[318517285,1710271838238,-228.25341127,0.00015399,2]
[318517287,1710271838248,-346.6566281,0.00015498,2]
[318517288,1710271838257,-500.0,0.00015498,2]
[318517291,1710271838267,-500.0,0.00015498,2]
[318517293,1710271838276,-500.0,0.00015498,2]
[318517294,1710271838286,-500.0,0.00015498,2]
[318517297,1710271838295,-566.89499158,0.00015498,2]
[318517299,1710271838305,-500.0,0.00015498,2]
[318517300,1710271838314,-500.0,0.00015498,2]
[318517303,1710271838324,-1028.05,0.00015498,2]
[318517305,1710271838334,-1028.05,0.00015498,2]
[318517307,1710271838343,-1028.05,0.00015498,2]
[318517309,1710271838352,-318.63423594,0.00015498,2]
[318517311,1710271838365,-709.41576406,0.00015498,2]
[318517313,1710271838375,-1028.05,0.00015498,2]
[318517315,1710271838384,-1028.05,0.00015498,2]
[318517317,1710271838393,-90.49275,0.00015498,2]
[318517459,1710271840847,-228.25341127,0.00015399,2]
[318517460,1710271840859,-409.50725,0.00015498,2]
[318517461,1710271840870,-500.0,0.00015498,2]
[318517462,1710271840880,-500.0,0.00015498,2]
[318517463,1710271840893,-500.0,0.00015498,2]
[318517464,1710271840904,-500.0,0.00015498,2]
[318517465,1710271840916,-500.0,0.00015498,2]
[318517466,1710271840927,-500.0,0.00015498,2]
[318517467,1710271840938,-500.0,0.00015498,2]
[318517468,1710271840951,-500.0,0.00015498,2]
[318517469,1710271840962,-500.0,0.00015498,2]
[318517470,1710271840973,-500.0,0.00015498,2]
[318517471,1710271840984,-500.0,0.00015498,2]
[318517472,1710271840998,-500.0,0.00015498,2]
[318517473,1710271841009,-500.0,0.00015498,2]
[318517474,1710271841019,-500.0,0.00015498,2]
[318517476,1710271841030,-500.0,0.00015498,2]
[318517477,1710271841040,-500.0,0.00015498,2]
[318517480,1710271841051,-240.60086643,0.00015498,2]
[318517481,1710271841061,-500.0,0.00015498,2]
[318517483,1710271841071,-500.0,0.00015498,2]
[318517485,1710271841081,-445.0911672,0.00015498,2]
[318517487,1710271841091,-500.0,0.00015498,2]
[318517489,1710271841101,-500.0,0.00015498,2]
[318517491,1710271841110,-500.0,0.00015498,2]
[318517493,1710271841120,-500.0,0.00015498,2]
[318517494,1710271841129,-500.0,0.00015498,2]
[318517496,1710271841140,-500.0,0.00015498,2]
[318517498,1710271841150,-294.77831715,0.00015499,2]
[318517499,1710271841160,-1758.04383088,0.00015499,2]
[318517501,1710271841170,-5863.65315124,0.00015499,2]
[318517503,1710271841184,-28828.6212874,0.00015499,2]
[318517504,1710271841198,-12964.51499706,0.00015499,2]
[318517505,1710271841207,-500.0,0.00015499,2]
[318517506,1710271841217,-500.0,0.00015499,2]
[318517507,1710271841226,-500.0,0.00015499,2]
[318517508,1710271841236,-500.0,0.00015499,2]
[318517509,1710271841245,-340.47845287,0.00015499,2]
[318517510,1710271841255,-880.53,0.00015499,2]
[318517511,1710271841264,-880.53,0.00015499,2]
[318517512,1710271841274,-880.53,0.00015499,2]
[318517513,1710271841284,-880.53,0.00015499,2]
[318517514,1710271841293,-880.53,0.00015499,2]
[318517516,1710271841303,-880.53,0.00015499,2]
[318517517,1710271841313,-880.53,0.00015499,2]
[318517519,1710271841322,-880.53,0.00015499,2]
[318517521,1710271841333,-880.53,0.00015499,2]
[318517523,1710271841342,-880.53,0.00015499,2]
[318517525,1710271841352,-880.53,0.00015499,2]
[318517526,1710271841361,-880.53,0.00015499,2]
[318517528,1710271841371,-880.53,0.00015499,2]
[318517529,1710271841381,-880.53,0.00015499,2]
[318517530,1710271841390,-880.53,0.00015499,2]
[318517531,1710271841399,-880.53,0.00015499,2]
[318517532,1710271841410,-880.563,0.00015499,2]
[318517533,1710271841419,-500.0,0.00015499,2]
[318517534,1710271841429,-500.0,0.00015499,2]
[318517535,1710271841442,-500.0,0.00015499,2]
[318517536,1710271841452,-500.0,0.00015499,2]
[318517537,1710271841462,-500.0,0.00015499,2]
[318517538,1710271841475,-500.0,0.00015499,2]
[318517539,1710271841484,-500.0,0.00015499,2]
[318517540,1710271841494,-588.81,0.00015499,2]
[318517541,1710271841504,-500.0,0.00015499,2]
[318517542,1710271841515,-445.41447254,0.00015499,2]
[318517543,1710271841525,-500.0,0.00015499,2]
[318517544,1710271841534,-500.0,0.00015499,2]
[318517545,1710271841544,-500.0,0.00015499,2]
[318517546,1710271841554,-500.0,0.00015499,2]
[318517547,1710271841563,-466.96464,0.00015499,2]
[318517548,1710271841572,-500.0,0.00015499,2]
[318517549,1710271841583,-2924.05,0.00015499,2]
[318517550,1710271841593,-2924.05,0.00015499,2]
[318517552,1710271841604,-2924.05,0.00015499,2]
[318517554,1710271841613,-2924.05,0.00015499,2]
[318517555,1710271841624,-2924.05,0.00015499,2]
[318517556,1710271841634,-2924.05,0.00015499,2]
[318517558,1710271841644,-2924.05,0.00015499,2]
[318517559,1710271841653,-2924.05,0.00015499,2]
[318517561,1710271841662,-2924.05,0.00015499,2]
[318517562,1710271841672,-2924.05,0.00015499,2]
[318517563,1710271841682,-2924.05,0.00015499,2]
[318517565,1710271841694,-2924.05,0.00015499,2]
[318517566,1710271841703,-2924.05,0.00015499,2]
[318517567,1710271841713,-2924.05,0.00015499,2]
[318517568,1710271841723,-2924.05,0.00015499,2]
[318517569,1710271841733,-500.0,0.00015499,2]
[318517570,1710271841742,-314.90373055,0.00015499,2]
[318517571,1710271841752,-5224.02,0.00015499,2]
[318517572,1710271841763,-5224.02,0.00015499,2]
[318517573,1710271841773,-5224.02,0.00015499,2]
[318517574,1710271841784,-5224.02,0.00015499,2]
[318517575,1710271841794,-5224.02,0.00015499,2]
[318517576,1710271841806,-5224.02,0.00015499,2]
[318517578,1710271841815,-5224.02,0.00015499,2]
[318517580,1710271841825,-5224.02,0.00015499,2]
[318517581,1710271841834,-5224.02,0.00015499,2]
[318517583,1710271841844,-5224.02,0.00015499,2]
[318517585,1710271841854,-5224.02,0.00015499,2]
[318517587,1710271841864,-5224.02,0.00015499,2]
[318517588,1710271841874,-5224.02,0.00015499,2]
[318517589,1710271841883,-5224.02,0.00015499,2]
[318517590,1710271841892,-5224.14802082,0.00015499,2]
[318517591,1710271841903,-1028.05,0.00015499,2]
[318517592,1710271841912,-1028.05,0.00015499,2]
[318517593,1710271841923,-1028.05,0.00015499,2]
[318517594,1710271841933,-1028.05,0.00015499,2]
[318517595,1710271841949,-1028.05,0.00015499,2]
[318517596,1710271841959,-1028.05,0.00015499,2]
[318517597,1710271841969,-1028.05,0.00015499,2]
[318517598,1710271841979,-1028.05,0.00015499,2]
[318517599,1710271841989,-1028.05,0.00015499,2]
[318517600,1710271841998,-1028.05,0.00015499,2]
[318517601,1710271842010,-1028.05,0.00015499,2]
[318517602,1710271842020,-1028.05,0.00015499,2]
[318517603,1710271842029,-1028.05,0.00015499,2]
[318517604,1710271842039,-1028.05,0.00015499,2]
[318517605,1710271842049,-1028.11739524,0.00015499,2]
[318517606,1710271842059,-500.0,0.00015499,2]
[318517607,1710271842069,-500.0,0.00015499,2]
[318517608,1710271842078,-500.0,0.00015499,2]
[318517609,1710271842088,-500.0,0.00015499,2]
[318517610,1710271842097,-500.0,0.00015499,2]
[318517611,1710271842108,-500.0,0.00015499,2]
[318517612,1710271842118,-500.0,0.00015499,2]
[318517613,1710271842128,-500.0,0.00015499,2]
[318517614,1710271842138,-500.0,0.00015499,2]
[318517615,1710271842148,-500.0,0.00015499,2]
[318517616,1710271842158,-345.76984606,0.00015499,2]
[318517617,1710271842167,-500.0,0.00015499,2]
[318517618,1710271842177,-476.68417691,0.00015499,2]
[318517619,1710271842188,-500.0,0.00015499,2]
[318517620,1710271842200,-500.0,0.00015499,2]
[318517621,1710271842210,-500.0,0.00015499,2]
[318517622,1710271842221,-500.0,0.00015499,2]
[318517623,1710271842232,-500.0,0.00015499,2]
[318517624,1710271842244,-500.0,0.00015499,2]
[318517625,1710271842256,-500.0,0.00015499,2]
[318517626,1710271842266,-500.0,0.00015499,2]
[318517627,1710271842276,-500.0,0.00015499,2]
[318517628,1710271842285,-500.0,0.00015499,2]
[318517629,1710271842296,-500.0,0.00015499,2]
[318517630,1710271842305,-304061.49320933,0.000155,2]
[318517631,1710271842321,-4181.2692376,0.000155,2]
[318517632,1710271842332,-4993.38,0.000155,2]
[318517641,1710271843230,-228.25341127,0.000154,2]
[318517642,1710271843240,-228.25341127,0.000154,2]
[318517643,1710271843250,-120700.22368175,0.000155,2]
[318517644,1710271843281,-3909.52832508,0.000155,2]
[318520466,1710273032640,-427.26516075,0.00014262,2]
[318520467,1710273032737,-24900.0,0.00014263,2]
[318520468,1710273032747,-273.667305,0.000144,2]
[318520470,1710273032757,-166.276254,0.00014466,2]
[318520472,1710273032769,-154.752194,0.00014466,2]
[318520474,1710273032779,-9769.2882869,0.00014515,2]
[318520476,1710273032789,-1009.72363471,0.00015399,2]
[318520478,1710273032799,-5220.58891346,0.000154,2]
[318520480,1710273032808,-456.50682254,0.000154,2]
[318520482,1710273032818,-624.84867122,0.00015492,2]
[318520484,1710273032831,-500.0,0.00015496,2]
[318520486,1710273032841,-500.0,0.00015496,2]
[318520488,1710273032852,-500.0,0.00015496,2]
[318520490,1710273032863,-500.0,0.00015496,2]
[318520492,1710273032874,-500.0,0.00015497,2]
[318520494,1710273032885,-500.0,0.00015497,2]
[318520496,1710273032895,-500.0,0.00015497,2]
[318520499,1710273032906,-2020.56022276,0.00015498,2]
[318520501,1710273032916,-294.77831715,0.00015498,2]
[318520502,1710273032926,-500.0,0.00015498,2]
[318520505,1710273032937,-170.22579792,0.00015498,2]
[318520506,1710273032947,-500.0,0.00015498,2]
[318520508,1710273032957,-500.0,0.00015498,2]
[318520510,1710273032968,-183.10678877,0.00015499,2]
[318520513,1710273032978,-217.11362545,0.00015499,2]
[318520514,1710273032989,-500.0,0.00015499,2]
[318520517,1710273033000,-500.0,0.00015499,2]
[318520519,1710273033010,-500.0,0.00015499,2]
[318520520,1710273033022,-427.04976522,0.00015499,2]
[318520523,1710273033031,-83574.27991043,0.000155,2]
[318520525,1710273033044,-410994.0,0.000155,2]
[318520527,1710273033056,-44250.89350206,0.000155,2]
[318520529,1710273033069,-12674.35147077,0.000155,2]
[318520531,1710273033082,-21722.47455666,0.000155,2]
[318520534,1710273033095,-18672.7773422,0.000155,2]
[318520536,1710273033108,-1814.50338682,0.000155,2]
[318520642,1710273038411,-775.68953518,0.000155,2]
[318520664,1710273038509,-8549.48628499,0.000155,2]
[318520837,1710273041216,-704.87272718,0.000155,2]
[318520838,1710273041228,-1365.82188577,0.000155,2]
[318520877,1710273043355,-69766.46743614,0.000155,2]
[318521217,1710274057507,1000.0,0.00025,120]
[318521218,1710274065665,1000.0,0.00024,120]
[318521219,1710274075878,1000.0,0.00023,99]
[318521295,1710274232518,-427.26516075,0.00014472,2]
[318521296,1710274232529,-353.695848,0.00014473,2]
[318521297,1710274232538,-534.69150844,0.00015,2]
[318521298,1710274232549,-976.38199015,0.00015,2]
[318521299,1710274232578,-33778.94753518,0.00015,2]
[318521300,1710274232589,-709.97896623,0.00015,2]
[318521301,1710274232599,-302.12520522,0.00015,2]
[318521302,1710274232608,-500.0,0.00015399,2]
[318521304,1710274232617,-8170.39690578,0.000154,2]
[318521306,1710274232628,-1236.91602553,0.000154,2]
[318521445,1710274238614,-6238.19918982,0.000154,2]
[318521448,1710274238624,-500.0,0.00015496,2]
[318521451,1710274238633,-222.16,0.00015496,2]
[318521454,1710274238642,-624.32879826,0.00015498,2]
[318521457,1710274238651,-524.47552081,0.00015498,2]
[318521460,1710274238660,-2020.56022276,0.00015498,2]
[318521463,1710274238670,-212.12126449,0.00015498,2]
[318521466,1710274238679,-354.49283057,0.00015498,2]
[318521469,1710274238689,-500.0,0.00015498,2]
[318521472,1710274238698,-500.0,0.00015498,2]
[318521475,1710274238706,-500.0,0.00015498,2]
[318521478,1710274238716,-500.0,0.00015498,2]
[318521481,1710274238725,-500.0,0.00015498,2]
[318521484,1710274238735,-500.0,0.00015498,2]
[318521487,1710274238744,-500.0,0.00015498,2]
[318521490,1710274238753,-500.0,0.00015498,2]
[318521492,1710274238762,-500.0,0.00015498,2]
[318521495,1710274238771,-500.0,0.00015498,2]
[318521498,1710274238782,-500.64331653,0.00015498,2]
[318521500,1710274238791,-615.26913068,0.00015498,2]
[318521503,1710274238800,-500.0,0.00015498,2]
[318521507,1710274238810,-500.0,0.00015498,2]
[318521510,1710274238819,-500.0,0.00015498,2]
[318521513,1710274238829,-500.0,0.00015498,2]
[318521517,1710274238840,-500.0,0.00015498,2]
[318521519,1710274238850,-500.0,0.00015498,2]
[318521521,1710274238858,-492.37424806,0.00015498,2]
[318521525,1710274238868,-500.0,0.00015498,2]
[318521528,1710274238877,-500.0,0.00015498,2]
[318521531,1710274238886,-423.61688521,0.00015498,2]
[318521534,1710274238896,-500.0,0.00015498,2]
[318521537,1710274238905,-529.93305775,0.00015498,2]
[318521540,1710274238915,-286.42355333,0.00015498,2]
[318521543,1710274238924,-500.0,0.00015498,2]
[318521546,1710274238934,-500.0,0.00015498,2]
[318521548,1710274238944,-500.0,0.00015498,2]
[318521552,1710274238953,-500.0,0.00015498,2]
[318521555,1710274238964,-500.0,0.00015498,2]
[318521558,1710274238973,-500.0,0.00015498,2]
[318521561,1710274238983,-501.32189944,0.00015498,2]
[318521564,1710274238993,-255.55303743,0.00015498,2]
[318521566,1710274239002,-502.18248914,0.00015498,2]
[318521569,1710274239011,-500.0,0.00015498,2]
[318521572,1710274239021,-500.0,0.00015498,2]
[318521574,1710274239030,-500.0,0.00015498,2]
[318521576,1710274239040,-500.0,0.00015498,2]
[318521578,1710274239049,-500.0,0.00015498,2]
[318521581,1710274239059,-500.0,0.00015498,2]
[318521584,1710274239069,-326.65088458,0.00015499,2]
[318521588,1710274239079,-500.0,0.00015499,2]
[318521590,1710274239088,-554.43205249,0.00015499,2]
[318521593,1710274239098,-645.22334056,0.00015499,2]
[318521595,1710274239109,-500.0,0.00015499,2]
[318521597,1710274239119,-500.0,0.00015499,2]
[318521599,1710274239129,-500.0,0.00015499,2]
[318521601,1710274239139,-500.0,0.00015499,2]
[318521603,1710274239150,-500.0,0.00015499,2]
[318521605,1710274239159,-500.0,0.00015499,2]
[318521607,1710274239169,-406.87243515,0.00015499,2]
[318521609,1710274239179,-500.0,0.00015499,2]
[318521611,1710274239188,-500.0,0.00015499,2]
[318521613,1710274239198,-435.81533238,0.00015499,2]
[318521615,1710274239207,-500.0,0.00015499,2]
[318521617,1710274239217,-500.0,0.00015499,2]
[318521618,1710274239227,-500.0,0.00015499,2]
[318521620,1710274239237,-327.47714164,0.00015499,2]
[318521622,1710274239247,-500.0,0.00015499,2]
[318521624,1710274239257,-500.0,0.00015499,2]
[318521626,1710274239266,-500.0,0.00015499,2]
[318521628,1710274239275,-500.0,0.00015499,2]
[318521630,1710274239284,-544.73797812,0.00015499,2]
[318521633,1710274239293,-500.0,0.00015499,2]
[318521636,1710274239305,-500.0,0.00015499,2]
[318521637,1710274239315,-421.30370122,0.00015499,2]
[318521640,1710274239324,-259.39242597,0.00015499,2]
[318521643,1710274239333,-500.0,0.00015499,2]
[318521646,1710274239343,-500.0,0.00015499,2]
[318521650,1710274239353,-340.66040214,0.00015499,2]
[318521652,1710274239362,-501.71747251,0.00015499,2]
[318521657,1710274239372,-518.32,0.00015499,2]
[318521658,1710274239381,-500.0,0.00015499,2]
[318521661,1710274239390,-500.0,0.00015499,2]
[318521665,1710274239400,-500.0,0.00015499,2]
[318521668,1710274239409,-500.0,0.00015499,2]
[318521671,1710274239419,-500.0,0.00015499,2]
[318521673,1710274239427,-354.14,0.00015499,2]
[318521676,1710274239437,-217.58646223,0.00015499,2]
[318521678,1710274239446,-500.0,0.00015499,2]
[318521681,1710274239456,-500.0,0.00015499,2]
[318521684,1710274239465,-500.0,0.00015499,2]
[318521687,1710274239475,-500.0,0.00015499,2]
[318521689,1710274239483,-500.0,0.00015499,2]
[318521692,1710274239493,-500.0,0.00015499,2]
[318521695,1710274239502,-500.0,0.00015499,2]
[318521697,1710274239511,-500.0,0.00015499,2]
[318521701,1710274239520,-500.0,0.00015499,2]
[318521704,1710274239530,-475.16,0.00015499,2]
[318521707,1710274239538,-500.0,0.00015499,2]
[318521709,1710274239548,-638.73164883,0.00015499,2]
[318521712,1710274239556,-500.0,0.00015499,2]
[318521715,1710274239565,-500.0,0.00015499,2]
[318521717,1710274239574,-586.85861008,0.00015499,2]
[318521719,1710274239583,-500.0,0.00015499,2]
[318521723,1710274239593,-500.0,0.00015499,2]
[318521725,1710274239602,-500.0,0.00015499,2]
[318521727,1710274239610,-500.0,0.00015499,2]
[318521730,1710274239620,-500.0,0.00015499,2]
[318521733,1710274239629,-500.0,0.00015499,2]
[318521735,1710274239638,-500.0,0.00015499,2]
[318521738,1710274239648,-500.0,0.00015499,2]
[318521741,1710274239657,-500.0,0.00015499,2]
[318521743,1710274239666,-500.0,0.00015499,2]
[318521748,1710274239679,-500.0,0.00015499,2]
[318521750,1710274239688,-414.88595475,0.00015499,2]
[318521753,1710274239697,-500.0,0.00015499,2]
[318521756,1710274239707,-500.0,0.00015499,2]
[318521758,1710274239717,-500.0,0.00015499,2]
[318521761,1710274239726,-500.0,0.00015499,2]
[318521764,1710274239735,-500.0,0.00015499,2]
[318521766,1710274239744,-500.0,0.00015499,2]
[318521769,1710274239753,-500.0,0.00015499,2]
[318521772,1710274239762,-525.38,0.00015499,2]
[318521775,1710274239771,-148505.07007656,0.000155,2]
[318521778,1710274239784,-22659.00116159,0.000155,2]
[318521781,1710274239797,-26376.65164125,0.000155,2]
[318521785,1710274239811,-2755.46985296,0.000155,2]
[318521788,1710274239822,-7815.7935441,0.000155,2]
[318522189,1710274243509,-2000.72533985,0.000155,2]
[318522191,1710274243521,-870.83445925,0.000155,2]
[318522519,1710274246909,-918952.65860641,0.000155,2]
[318529630,1710275433024,-427.26516075,0.00014488,2]
[318529634,1710275433034,-176.847924,0.00014499,2]
[318529637,1710275433043,-620.24243356,0.00015454,2]
[318529641,1710275433052,-621.10261512,0.00015483,2]
[318529645,1710275433061,-298.36842984,0.00015498,2]
[318529647,1710275433070,-177.58919152,0.00015498,2]
[318529649,1710275433081,-310.26217639,0.00015498,2]
[318529651,1710275433090,-283.03069035,0.00015498,2]
[318529653,1710275433099,-171.14961339,0.00015498,2]
[318529655,1710275433108,-500.0,0.00015498,2]
[318529658,1710275433117,-500.0,0.00015498,2]
[318529661,1710275433126,-178.38581608,0.00015499,2]
[318529664,1710275433136,-310.3898575,0.00015499,2]
[318529666,1710275433145,-195.09389223,0.00015499,2]
[318529668,1710275433155,-846.79672194,0.00015499,2]
[318529670,1710275433164,-592.79053118,0.00015499,2]
[318529672,1710275433173,-452.95338204,0.00015499,2]
[318530201,1710275438784,-47.04661796,0.00015499,2]
[318530204,1710275438794,-500.0,0.00015499,2]
[318530206,1710275438805,-74.05599716,0.00015499,2]
[318530213,1710275438835,-263.09087708,0.00015499,2]
[318530218,1710275438852,-162.85312576,0.00015499,2]
[318530221,1710275438862,-500.0,0.00015499,2]
[318530224,1710275438873,-280.25317168,0.00015499,2]
[318530227,1710275438883,-500.0,0.00015499,2]
[318530230,1710275438893,-635.88,0.00015499,2]
[318530233,1710275438903,-500.0,0.00015499,2]
[318530236,1710275438913,-500.0,0.00015499,2]
[318530239,1710275438923,-500.0,0.00015499,2]
[318530241,1710275438932,-500.0,0.00015499,2]
[318530244,1710275438943,-500.0,0.00015499,2]
[318530247,1710275438953,-500.0,0.00015499,2]
[318530249,1710275438963,-500.0,0.00015499,2]
[318530251,1710275438972,-500.0,0.00015499,2]
[318530253,1710275438982,-500.0,0.00015499,2]
[318530254,1710275438991,-500.0,0.00015499,2]
[318530256,1710275439001,-500.0,0.00015499,2]
[318530258,1710275439011,-500.0,0.00015499,2]
[318530259,1710275439021,-500.0,0.00015499,2]
[318530261,1710275439030,-500.0,0.00015499,2]
[318530263,1710275439039,-627.97151107,0.00015499,2]
[318530265,1710275439049,-500.0,0.00015499,2]
[318530266,1710275439058,-500.0,0.00015499,2]
[318530268,1710275439067,-500.0,0.00015499,2]
[318530270,1710275439077,-547.44334031,0.00015499,2]
[318530272,1710275439088,-500.0,0.00015499,2]
[318530273,1710275439097,-500.0,0.00015499,2]
[318530276,1710275439107,-500.0,0.00015499,2]
[318530279,1710275439117,-500.0,0.00015499,2]
[318530282,1710275439126,-500.0,0.00015499,2]
[318530285,1710275439135,-500.0,0.00015499,2]
[318530287,1710275439144,-500.0,0.00015499,2]
[318530290,1710275439154,-500.0,0.00015499,2]
[318530293,1710275439162,-500.0,0.00015499,2]
[318530295,1710275439171,-500.0,0.00015499,2]
[318530298,1710275439181,-500.0,0.00015499,2]
[318530301,1710275439189,-615.63,0.00015499,2]
[318530304,1710275439199,-170.55627504,0.00015499,2]
[318530306,1710275439208,-500.0,0.00015499,2]
[318530309,1710275439217,-500.0,0.00015499,2]
[318530312,1710275439226,-500.0,0.00015499,2]
[318530314,1710275439235,-500.0,0.00015499,2]
[318530317,1710275439245,-359.51401882,0.00015499,2]
[318530320,1710275439258,-273.63598118,0.00015499,2]
[318530322,1710275439267,-434.51401882,0.000155,2]
[318530580,1710275441535,-20142.28876686,0.000155,2]
[318530582,1710275441551,-17175.00024641,0.000155,2]
[318542685,1710276631958,-155.3557647,0.00014519,2]
[318542688,1710276631967,-213.231611,0.0001452,2]
[318542690,1710276631976,-24890.0,0.00014541,2]
[318542693,1710276631986,-317.74135761,0.00015498,2]
[318542696,1710276631995,-340.939357,0.00015499,2]
[318542698,1710276632006,-581.0,0.00015499,2]
[318542700,1710276632017,-881.42,0.00015499,2]
[318542702,1710276632027,-178.08956204,0.00015499,2]
[318542704,1710276632036,-500.0,0.00015499,2]
[318542706,1710276632045,-500.0,0.00015499,2]
[318542708,1710276632054,-500.0,0.00015499,2]